bitfinex/quotes_ETHUSD_20250430
["timestamp","ask_amount","ask_price","bid_price","bid_amount"]
[1746026257980,3.0,1768.1,1767.8,0.7562]
[1746026258493,3.0,1768.1,1767.7,6.7924]
[1746026258992,3.0,1768.1,1767.7,6.3]
[1746026258993,3.0,1767.9,1767.7,6.3]
[1746026259160,3.0,1767.9,1767.6,4.924]
[1746026259660,3.0,1767.9,1767.6,11.224]
[1746026260061,3.0,1768.1,1767.7,0.83836777]
[1746026260298,3.0,1768.1,1767.7,0.7818]
[1746026260882,3.43469575,1768.1,1767.7,0.7818]
[1746026261492,3.3675165,1767.9,1767.7,0.7818]
[1746026262972,3.3675165,1768.5,1767.9,0.7686]
[1746026263298,3.3675165,1768.5,1768.1,0.7686]
[1746026263594,3.3675165,1768.5,1768.1,7.0686]
[1746026263800,3.3675165,1768.5,1768.1,7.63776]
[1746026265699,6.23184808,1768.3,1768.1,6.3]
[1746026265900,3.0,1768.2,1768.0,4.923]
[1746026266071,9.23184808,1768.1,1768.0,4.923]
[1746026267597,0.7637,1768.0,1767.7,4.923]
[1746026267796,6.23184808,1767.9,1767.7,4.923]
[1746026269200,3.0,1767.8,1767.4,5.7477]
[1746026269411,6.23184808,1767.7,1767.4,5.7477]
[1746026270005,3.0,1767.8,1767.4,5.7477]
[1746026271179,11.067,1768.3,1767.6,0.7873]
[1746026271180,3.7506,1768.2,1767.6,0.7873]
[1746026271587,6.23184808,1768.1,1767.6,0.7873]
[1746026271786,6.23184808,1768.1,1767.6,7.0873]
[1746026271996,6.23184808,1768.1,1767.6,7.79603]
[1746026274080,6.23184808,1768.1,1767.6,0.7873]
[1746026275011,0.31629284,1768.0,1767.6,0.7873]
[1746026275211,0.73890347,1768.0,1767.6,0.7873]
[1746026275877,0.73890347,1768.0,1767.5,0.7642]
[1746026275878,3.0,1767.8,1767.5,0.7642]
[1746026276082,3.0,1767.8,1767.4,4.917]
[1746026276083,6.23184808,1767.7,1767.4,4.917]
[1746026277114,3.0,1767.6,1767.4,4.917]
[1746026277409,9.23184808,1767.5,1767.4,4.917]
[1746026278719,9.65921957,1767.5,1767.4,4.917]
[1746026279904,9.65921957,1767.5,1767.1,11.9812]
[1746026280301,3.42737149,1767.5,1767.1,11.9812]
[1746026281512,3.42737149,1767.5,1767.3,0.8042]
[1746026282509,7.04324808,1767.8,1767.4,6.3]
[1746026282910,3.0,1767.7,1767.4,6.3]
[1746026284120,0.42261063,1768.0,1767.5,5.7383]
[1746026284306,0.8213,1768.2,1767.6,1.38609735]
[1746026284513,0.8213,1768.2,1767.6,1.32953]
[1746026285841,6.99634808,1768.4,1767.7,0.85215973]
[1746026286007,6.99634808,1768.4,1767.7,0.85215505]
[1746026286190,7.04304808,1768.2,1767.7,0.7956]
[1746026286536,3.0,1767.9,1767.6,0.8255]
[1746026287519,3.7625,1767.9,1767.5,4.918]
[1746026288424,6.23184808,1767.8,1767.5,4.918]
[1746026289637,3.0,1767.7,1767.5,4.918]
[1746026289845,3.0,1767.7,1767.0,4.917]
[1746026289846,3.0,1767.5,1767.0,4.917]
[1746026290135,6.23184808,1767.3,1767.0,4.917]
[1746026291537,3.0,1767.4,1767.0,4.917]
[1746026293126,3.42378236,1767.4,1767.0,4.917]
[1746026294829,0.42378236,1767.4,1767.1,0.7809]
[1746026295030,6.23184808,1767.5,1767.1,1.35069]
[1746026298010,6.64640577,1767.5,1767.1,1.35069]
[1746026298206,3.0,1767.4,1767.0,4.917]
[1746026298406,6.23184808,1767.3,1767.0,4.917]
[1746026298736,6.23184808,1767.3,1766.9,0.7612]
[1746026299044,6.23184808,1767.1,1766.7,5.6929]
[1746026299210,6.23184808,1767.1,1766.7,6.26219]
[1746026299404,7.04734808,1767.3,1766.7,6.26219]
[1746026299843,0.6,1767.2,1766.7,6.26219]
[1746026300439,6.23184808,1767.1,1766.7,6.26219]
[1746026300803,6.23184808,1766.9,1766.7,4.918]
[1746026301003,0.7837,1766.7,1766.4,4.912]
[1746026301237,7.01554808,1766.7,1766.4,4.912]
[1746026302007,7.29691944,1766.7,1766.4,4.912]
[1746026302464,7.01554808,1766.7,1766.4,4.912]
[1746026302758,0.05000015,1767.1,1766.5,0.7613]
[1746026302759,9.23184808,1767.1,1766.5,0.7613]
[1746026302977,10.28283174,1767.1,1766.5,0.7613]
[1746026303181,10.33283189,1767.1,1766.5,0.7613]
[1746026304541,16.24683174,1767.1,1766.5,0.7613]
[1746026304752,13.07381491,1767.1,1766.5,0.7613]
[1746026305959,10.28283174,1767.1,1766.5,0.7613]
[1746026306172,11.663,1767.2,1766.6,0.05659898]
[1746026306364,7.03868572,1767.2,1766.7,0.8318]
[1746026307532,0.88868572,1767.2,1766.7,0.8318]
[1746026307732,0.6,1767.2,1767.0,0.55]
[1746026307962,0.6,1767.2,1767.1,1.40437747]
[1746026308134,0.6,1767.2,1767.1,2.03611522]
[1746026308561,12.38184808,1768.0,1767.2,1.3352]
[1746026308780,12.38184808,1768.0,1767.3,0.84177378]
[1746026308933,6.15,1768.0,1767.4,4.913]
[1746026309139,6.15,1768.0,1767.5,0.765]
[1746026309338,3.8269,1768.1,1767.5,1.3328]
[1746026309533,4.25901154,1768.1,1767.5,1.3328]
[1746026309866,6.23184808,1768.0,1767.5,1.3328]
[1746026310403,0.43211154,1768.1,1767.5,1.38937028]
[1746026310694,6.23184808,1768.2,1767.5,1.38937028]
[1746026310900,6.23184808,1768.2,1767.6,0.832]
[1746026311100,6.23184808,1768.3,1767.8,0.832]
[1746026311263,0.28151129,1768.4,1767.8,0.832]
[1746026311462,6.23184808,1768.5,1767.9,4.912]
[1746026311663,6.93407289,1768.5,1767.9,5.4864]
[1746026312089,6.95329119,1768.5,1767.9,5.54295487]
[1746026312290,6.66264104,1768.5,1767.9,5.4864]
[1746026312477,3.0,1768.4,1767.9,5.4864]
[1746026312693,6.23184808,1768.3,1767.9,5.4864]
[1746026316482,6.23184808,1768.3,1767.9,4.912]
[1746026317829,6.23184808,1768.3,1767.8,0.832]
[1746026317830,3.0,1768.2,1767.8,0.832]
[1746026317985,6.23184808,1768.0,1767.6,5.7134]
[1746026318321,6.66540995,1768.0,1767.6,0.8024]
[1746026318524,6.23184808,1767.8,1767.6,0.8024]
[1746026318727,6.23184808,1767.8,1767.1,24.4244]
[1746026318728,3.05000015,1767.7,1767.1,24.4244]
[1746026318909,6.23184808,1767.6,1767.1,24.4244]
[1746026319625,10.05694808,1767.8,1767.1,24.4244]
[1746026319826,3.0,1767.7,1767.3,0.7773]
[1746026320993,3.0,1767.9,1767.3,0.7773]
[1746026321628,0.8178,1768.7,1767.7,0.8075]
[1746026321844,0.8178,1768.7,1767.9,0.8075]
[1746026321845,6.23184808,1768.4,1767.9,0.8075]
[1746026322009,6.85503289,1768.4,1767.9,0.8075]
[1746026322545,6.85503289,1768.4,1768.0,6.3]
[1746026322546,6.23184808,1768.4,1768.0,6.3]
[1746026322749,6.23184808,1768.6,1768.1,0.759]
[1746026323250,12.66347795,1768.8,1768.2,0.05654764]
[1746026323414,3.0,1768.7,1768.1,0.81554764]
[1746026323845,3.43508756,1768.7,1768.2,4.911]
[1746026324047,3.43508756,1768.7,1768.2,5.478]
[1746026324639,0.43508756,1768.7,1768.3,0.7538]
[1746026324839,6.23184808,1769.0,1768.4,0.05653933]
[1746026325244,5.64943905,1770.1,1768.4,0.05653933]
[1746026325245,30.67084808,1769.4,1768.6,0.7538]
[1746026325445,6.23184808,1769.2,1768.6,5.6648]
[1746026325628,6.66225957,1769.2,1768.6,5.6648]
[1746026326216,3.0,1769.1,1768.6,5.6648]
[1746026326652,6.66225957,1769.2,1768.7,0.05652732]
[1746026326858,6.66225957,1769.2,1768.6,5.6648]
[1746026327057,6.66225957,1769.2,1768.7,6.86648]
[1746026327231,3.0,1769.1,1768.7,6.86648]
[1746026329050,6.23184808,1769.0,1768.7,6.86648]
[1746026332154,6.23184808,1769.8,1768.8,0.88003477]
[1746026332357,6.23184808,1769.8,1769.1,0.55]
[1746026332561,3.0,1769.7,1769.1,1.3735]
[1746026332876,7.52003304,1769.8,1769.2,6.3]
[1746026333181,7.52003304,1769.8,1769.1,0.8235]
[1746026333575,3.0,1769.7,1769.2,6.3]
[1746026334236,3.0,1769.5,1769.2,6.3]
[1746026335251,3.0,1769.7,1769.2,7.01800184]
[1746026335646,6.66608274,1769.8,1769.2,7.01800184]
[1746026335846,6.15,1770.1,1769.3,0.88971036]
[1746026336051,6.15,1770.1,1769.6,0.8332]
[1746026336294,6.93140481,1770.2,1769.6,0.88969885]
[1746026336576,7.70445529,1770.2,1769.6,7.1332]
[1746026337383,3.0,1770.1,1769.6,7.1332]
[1746026338687,3.41876878,1770.1,1769.6,7.1332]
[1746026339247,6.23184808,1769.8,1769.6,7.1332]
[1746026339494,6.23184808,1769.8,1769.4,5.6999]
[1746026339985,6.23184808,1769.8,1769.5,6.3]
[1746026340377,6.23184808,1769.8,1769.4,5.6999]
[1746026340583,6.23184808,1769.8,1769.4,6.26989]
[1746026340777,6.23184808,1769.8,1769.5,6.3]
[1746026342004,0.41876878,1770.1,1769.5,6.3]
[1746026342174,3.0,1769.9,1769.6,0.8097]
[1746026342369,6.23184808,1769.8,1769.6,0.8097]
[1746026342977,3.0,1769.9,1769.6,1.52067]
[1746026343177,3.0,1769.9,1769.6,0.8097]
[1746026343614,3.0,1769.9,1769.7,6.3]
[1746026343825,3.0,1769.9,1769.6,0.8097]
[1746026343826,6.23184808,1769.8,1769.6,0.8097]
[1746026344016,6.23184808,1769.8,1769.4,5.6956]
[1746026344321,3.0,1769.5,1769.2,4.901]
[1746026344524,6.23184808,1769.2,1768.8,4.901]
[1746026344813,6.23184808,1769.0,1768.8,4.901]
[1746026345020,3.0,1768.9,1768.6,0.8238]
[1746026345177,3.0,1768.7,1768.5,4.901]
[1746026345597,6.23184808,1768.6,1768.5,4.901]
[1746026346197,6.23184808,1768.6,1768.3,0.7885]
[1746026346713,6.5109659,1768.6,1768.3,0.7885]
[1746026347022,3.0,1768.3,1768.0,4.902]
[1746026347320,6.23184808,1768.2,1768.0,4.902]
[1746026347747,3.0,1768.4,1768.0,4.902]
[1746026347748,9.23247843,1768.4,1768.0,4.902]
[1746026347956,9.23247843,1768.4,1768.0,5.47359]
[1746026348465,0.4216794,1768.4,1768.0,5.53014332]
[1746026348652,3.0,1768.6,1768.0,5.47359]
[1746026348960,6.23247843,1768.4,1768.0,5.47359]
[1746026349324,6.23247843,1768.1,1767.9,4.902]
[1746026349524,3.0,1768.4,1768.0,0.7989]
[1746026349729,3.05000015,1768.4,1767.9,4.902]
[1746026349930,3.0,1768.4,1767.9,4.902]
[1746026350137,6.23247843,1768.2,1767.9,4.902]
[1746026350576,6.23247843,1768.2,1766.7,6.17]
[1746026350577,0.7738,1768.0,1767.3,0.7811]
[1746026350738,3.0,1767.7,1767.3,0.7811]
[1746026350939,3.05000015,1767.7,1767.2,11.203]
[1746026351248,3.0,1767.7,1767.2,11.203]
[1746026352160,3.0,1767.7,1767.2,4.903]
[1746026352161,0.8188,1767.6,1767.2,4.903]
[1746026352373,3.0,1767.3,1767.2,4.903]
[1746026352553,3.0,1767.3,1766.9,5.6548]
[1746026352751,3.0,1767.3,1766.9,11.9548]
[1746026353256,3.8188,1767.6,1766.9,11.9548]
[1746026353454,3.0,1767.3,1766.9,11.9548]
[1746026356843,3.0,1767.3,1766.9,4.903]
[1746026358680,0.7521,1767.2,1766.9,4.903]
[1746026359052,3.0,1767.3,1766.9,4.903]
[1746026359566,3.0,1767.3,1767.0,0.4903]
[1746026359959,3.0,1767.3,1767.0,6.3]
[1746026360563,3.0,1767.3,1766.9,4.903]
[1746026361094,3.0,1767.3,1766.9,11.203]
[1746026362565,3.0,1767.3,1766.9,4.903]
[1746026366190,6.9197,1767.5,1767.0,6.3]
[1746026366352,6.15,1767.5,1767.1,1.4185]
[1746026366869,6.15,1767.5,1767.1,0.7885]
[1746026367069,6.15,1767.5,1767.2,6.3]
[1746026369555,12.38817579,1767.5,1767.2,6.3]
[1746026369788,6.23817579,1767.5,1767.2,6.3]
[1746026370113,0.43212479,1767.7,1767.2,6.35658442]
[1746026370289,0.43212479,1767.7,1767.3,5.53965844]
[1746026370469,0.42395944,1767.7,1767.3,5.53965844]
[1746026370668,3.0,1767.9,1767.4,0.7649]
[1746026370881,3.0,1767.7,1767.5,6.3]
[1746026371392,7.02387579,1767.6,1767.5,6.3]
[1746026371692,6.23817579,1767.6,1767.3,4.904]
[1746026372058,6.23817579,1767.6,1767.3,11.204]
[1746026373791,0.42608562,1767.7,1767.4,0.8247]
[1746026374005,3.0,1767.9,1767.4,0.8247]
[1746026374794,7.01527579,1768.0,1767.4,0.8812722]
[1746026374972,3.0,1767.9,1767.4,0.8247]
[1746026375171,7.01527579,1768.0,1767.4,0.8247]
[1746026375376,3.0,1767.9,1767.4,0.88127221]
[1746026375573,3.0,1767.9,1767.5,6.3]
[1746026375574,6.23817579,1767.8,1767.5,6.3]
[1746026375795,6.23817579,1768.1,1767.6,1.4478]
[1746026376496,3.0,1768.0,1767.6,1.50436409]
[1746026376657,3.0,1768.0,1767.6,1.4478]
[1746026377374,3.0,1768.0,1767.7,6.3]
[1746026379758,3.42317349,1768.0,1767.7,6.3]
[1746026380187,6.23817579,1767.9,1767.7,6.3]
[1746026381903,6.23817579,1767.9,1767.7,7.07478]
[1746026382607,0.42993304,1768.1,1767.8,0.7937]
[1746026382803,6.23817579,1768.4,1767.9,4.903]
[1746026383101,6.23817579,1768.4,1768.0,0.763]
[1746026383287,6.23817579,1768.4,1768.1,6.3]
[1746026384504,6.23817579,1768.2,1767.6,6.17]
[1746026384709,6.23817579,1767.7,1767.6,5.6861]
[1746026385681,6.23817579,1767.7,1767.4,5.6861]
[1746026386270,6.23817579,1767.7,1767.5,0.56861]
[1746026387272,6.66783782,1767.7,1767.5,0.56861]
[1746026388104,6.66783782,1767.7,1767.4,0.7831]
[1746026389394,0.42966203,1767.7,1767.4,0.7831]
[1746026389602,3.0,1767.9,1767.4,0.83966868]
[1746026390175,9.23817579,1767.9,1767.4,0.7831]
[1746026391516,6.23817579,1767.7,1767.4,0.7831]
[1746026391810,6.99537579,1767.7,1767.4,6.3]
[1746026393313,7.69491337,1767.7,1767.4,6.3]
[1746026395115,8.12975327,1767.7,1767.4,6.3]
[1746026395281,8.12975327,1767.7,1767.2,4.901]
[1746026395681,6.23817579,1767.5,1767.3,6.3]
[1746026395882,6.23817579,1767.5,1767.2,4.901]
[1746026396077,3.0,1767.6,1767.2,5.47326]
[1746026396292,3.0,1767.6,1767.3,6.3]
[1746026396503,6.23817579,1767.5,1767.2,4.901]
[1746026396707,6.23817579,1767.3,1767.2,4.901]
[1746026396882,6.23817579,1767.3,1766.9,5.6885]
[1746026397085,7.06007579,1767.3,1766.9,0.7875]
[1746026397428,6.23817579,1767.1,1766.7,0.8298]
[1746026397600,6.23817579,1767.1,1766.7,7.1298]
[1746026398129,6.23817579,1766.9,1766.6,5.19669772]
[1746026398815,6.66072356,1766.9,1766.6,11.49669772]
[1746026401823,6.23817579,1766.7,1766.6,4.901]
[1746026401996,6.23817579,1766.7,1766.3,0.8197]
[1746026401997,9.23817579,1766.7,1766.3,0.8197]
[1746026402199,6.23817579,1766.5,1766.3,4.902]
[1746026402403,9.23817579,1766.7,1766.3,4.902]
[1746026402647,6.66072356,1766.9,1766.4,0.7931]
[1746026403129,0.42254777,1766.9,1766.5,0.7834]
[1746026403422,0.6,1767.0,1766.6,0.05659485]
[1746026403628,0.6,1767.0,1766.8,0.7829]
[1746026403835,7.04347579,1767.8,1767.0,0.7829]
[1746026404013,7.32134974,1767.8,1767.2,0.7829]
[1746026404418,3.0,1767.7,1767.3,6.35657686]
[1746026404723,0.42407828,1767.7,1767.3,6.3]
[1746026404924,3.0,1767.7,1767.3,6.3]
[1746026405129,3.0,1767.7,1767.1,4.902]
[1746026405130,3.0,1767.3,1767.1,4.903]
[1746026405292,6.23817579,1767.2,1766.9,4.903]
[1746026405491,6.65873772,1767.2,1766.9,4.903]
[1746026406128,0.42056193,1767.2,1766.9,4.903]
[1746026406329,3.0,1767.3,1766.9,4.903]
[1746026407325,6.23817579,1767.2,1766.9,4.903]
[1746026409515,6.67378968,1767.2,1766.9,4.903]
[1746026410213,0.816,1767.1,1766.9,4.903]
[1746026410420,0.816,1767.1,1766.6,0.7894]
[1746026410628,0.816,1767.1,1766.7,4.903]
[1746026411134,0.816,1767.1,1766.7,11.203]
[1746026413346,6.23817579,1766.8,1766.6,0.7894]
[1746026413533,3.0,1766.7,1766.3,4.903]
[1746026413736,6.23817579,1766.5,1766.3,4.903]
[1746026414311,6.23817579,1766.7,1766.3,4.903]
[1746026414513,6.23817579,1766.7,1766.3,5.698]
[1746026414732,6.66887247,1766.7,1766.3,5.698]
[1746026415044,0.43069668,1766.7,1766.4,0.5698]
[1746026415211,3.0,1766.8,1766.5,6.3]
[1746026415411,3.0,1766.8,1766.3,5.698]
[1746026415621,0.7788,1766.6,1766.3,4.903]
[1746026415813,4.48049758,1766.6,1766.3,11.203]
[1746026416043,6.23817579,1766.5,1766.3,4.903]
[1746026417049,3.0,1766.6,1766.3,4.903]
[1746026417234,0.42452989,1766.7,1766.3,4.903]
[1746026417440,3.0,1766.8,1766.4,1.29]
[1746026418518,6.15,1767.0,1766.5,0.05660466]
[1746026418717,6.15,1767.0,1766.4,1.29]
[1746026418925,3.0,1766.9,1766.4,1.29]
[1746026419137,9.23817579,1766.9,1766.4,1.29]
[1746026424552,3.0,1766.9,1766.6,0.7748]
[1746026424753,3.0,1767.0,1766.6,0.7748]
[1746026425071,6.23817579,1766.7,1766.4,1.2625]
[1746026425236,7.01237579,1766.7,1766.4,0.7722]
[1746026425560,7.01237579,1766.7,1766.3,4.903]
[1746026426058,6.23817579,1766.5,1766.3,4.903]
[1746026426270,6.23817579,1766.5,1766.0,5.6742]
[1746026427057,6.23817579,1766.1,1765.8,0.7558]
[1746026427285,6.23817579,1765.9,1765.7,4.902]
[1746026427568,6.23817579,1765.9,1765.6,0.29568164]
[1746026428359,6.66294648,1765.9,1765.6,0.29568164]
[1746026430526,6.66294648,1765.9,1765.5,0.7834]
[1746026431863,6.66294648,1765.9,1765.6,0.26930928]
[1746026432865,6.23817579,1765.7,1765.6,0.26930928]
[1746026433048,9.23817579,1765.7,1765.6,0.26930928]
[1746026433458,9.23817579,1765.7,1765.4,4.902]
[1746026433634,3.0,1765.7,1765.6,0.2939596]
[1746026434169,3.0,1765.7,1765.4,4.902]
[1746026434337,3.0,1765.7,1765.5,0.2939596]
[1746026434738,3.0,1765.8,1765.5,0.2939596]
[1746026439645,6.23817579,1765.7,1765.5,0.2939596]
[1746026440577,3.8317,1765.6,1765.5,0.2939596]
[1746026440875,4.00698758,1765.6,1765.1,6.9931]
[1746026441074,0.80210015,1765.8,1765.5,0.27020196]
[1746026441241,6.23817579,1765.5,1765.1,0.8231]
[1746026441460,6.23817579,1765.5,1765.1,0.87974334]
[1746026441658,3.0,1765.6,1765.1,0.87974334]
[1746026442597,6.23817579,1765.7,1765.1,1.48779012]
[1746026442903,3.0,1765.8,1765.3,0.768]
[1746026443259,6.66294648,1765.9,1765.3,0.768]
[1746026443458,0.42477069,1765.9,1765.5,0.768]
[1746026443765,6.23817579,1765.9,1765.5,0.768]
[1746026443989,6.66886439,1765.9,1765.5,1.3353]
[1746026444391,6.66886439,1765.9,1765.5,1.39193155]
[1746026444796,6.66886439,1765.9,1765.5,1.3353]
[1746026445238,6.66886439,1765.9,1765.5,0.768]
[1746026445398,6.23817579,1765.7,1765.5,0.768]
[1746026445770,6.23817579,1765.7,1765.4,4.905]
[1746026445967,0.8123,1765.6,1765.2,0.8071]
[1746026446202,6.23817579,1765.5,1765.2,0.8071]
[1746026447068,6.23817579,1765.5,1765.1,0.29576987]
[1746026447266,6.23817579,1765.3,1765.1,0.29576987]
[1746026449015,6.23817579,1765.5,1765.1,0.35241816]
[1746026449217,6.23817579,1765.5,1765.1,0.29576987]
[1746026449532,3.8001,1765.8,1765.3,0.819]
[1746026449690,6.66886439,1765.9,1765.4,0.05663772]
[1746026450329,6.66886439,1765.9,1765.3,0.819]
[1746026450498,6.66886439,1765.9,1765.4,0.05663291]
[1746026450700,6.66886439,1765.9,1765.5,0.7868]
[1746026451087,0.4306886,1765.9,1765.6,0.05663285]
[1746026451285,6.23817579,1766.1,1765.7,0.7868]
[1746026451480,6.23817579,1766.1,1765.8,0.05662575]
[1746026451894,6.65914388,1766.1,1765.7,0.84342588]
[1746026452771,6.65914388,1766.1,1765.7,0.7868]
[1746026453018,6.23817579,1766.3,1765.9,0.7961]
[1746026453524,6.93868337,1766.3,1766.0,0.24446987]
[1746026453688,6.23817579,1766.1,1766.0,0.24446987]
[1746026453889,6.23817579,1766.1,1765.7,0.75]
[1746026454100,6.23817579,1766.1,1765.8,0.24420157]
[1746026454796,6.23817579,1765.9,1765.8,0.24420157]
[1746026454995,6.23817579,1765.9,1765.5,5.654]
[1746026454996,6.86199337,1765.9,1765.5,5.654]
[1746026455218,6.23817579,1765.9,1765.6,0.24420157]
[1746026455622,6.6672738,1766.1,1765.6,0.24420157]
[1746026455800,6.6672738,1766.1,1765.7,0.8052]
[1746026456134,6.6672738,1766.1,1765.8,0.24420157]
[1746026456432,6.6672738,1766.1,1765.7,0.8052]
[1746026456643,7.33400118,1766.1,1765.7,0.8052]
[1746026458429,7.03777579,1765.9,1765.5,5.7079]
[1746026458605,7.03777579,1765.9,1765.3,5.7069]
[1746026458606,6.23817579,1765.6,1765.3,5.7069]
[1746026458795,6.23817579,1765.6,1765.4,0.24420157]
[1746026460129,6.66348527,1765.6,1765.4,0.24420157]
[1746026461403,3.8256,1765.5,1765.4,0.24420157]
[1746026461597,3.8256,1765.5,1765.1,0.29575673]
[1746026461806,6.23817579,1765.3,1765.1,0.29575673]
[1746026462630,0.05000015,1765.2,1765.1,0.29575673]
[1746026462933,0.763,1765.2,1765.1,0.29575673]
[1746026463098,6.23817579,1765.3,1765.1,0.29575673]
[1746026463295,6.23817579,1765.3,1764.7,5.71945429]
[1746026463536,6.23817579,1765.3,1764.9,1.3348]
[1746026463853,0.6,1765.4,1765.1,0.29575299]
[1746026463994,0.6,1765.4,1765.2,0.7566]
[1746026466311,0.6,1765.4,1765.3,0.05663795]
[1746026466631,0.6,1765.4,1765.3,1.39553795]
[1746026466935,0.6,1765.4,1765.3,2.15209175]
[1746026467828,0.6,1765.4,1765.3,2.0954538]
[1746026468027,0.6,1765.4,1765.3,2.15208062]
[1746026468233,0.6,1765.4,1765.3,2.0954538]
[1746026468429,0.6,1765.4,1765.3,8.2654538]
[1746026468805,0.6,1765.4,1765.3,8.32208068]
[1746026469003,0.6,1765.4,1765.3,8.2654538]
[1746026469316,0.6,1765.4,1765.3,8.32208334]
[1746026469844,0.6,1765.4,1765.3,8.54418173]
[1746026470831,0.6,1765.4,1765.3,8.48755219]
[1746026472107,0.6,1765.4,1765.3,8.54418201]
[1746026472407,0.6,1765.4,1765.3,1.76755219]
[1746026472603,0.6,1765.4,1765.3,1.01099839]
[1746026473517,0.6,1765.4,1765.3,0.22209839]
[1746026473738,0.6,1765.4,1765.1,4.904]
[1746026473903,0.6,1765.4,1765.3,0.98803357]
[1746026474105,0.6,1765.4,1765.3,1.04466948]
[1746026475265,0.6,1765.4,1765.3,1.59466948]
[1746026475742,0.6,1765.4,1765.3,1.57726948]
[1746026476240,0.6,1765.4,1765.3,2.03499643]
[1746026477339,7.02447579,1766.2,1765.5,0.7841]
[1746026477540,3.0,1766.3,1765.7,1.3341]
[1746026477727,3.0,1766.3,1765.9,0.7841]
[1746026478235,0.773,1766.4,1766.0,0.27380306]
[1746026478441,0.42305967,1766.5,1766.1,0.7542]
[1746026478613,6.72857579,1766.6,1766.1,0.7542]
[1746026478815,6.23817579,1766.6,1766.2,0.26762311]
[1746026479048,6.23817579,1766.8,1766.3,0.55]
[1746026479249,6.23817579,1766.8,1766.4,0.7624]
[1746026479560,6.23817579,1766.8,1766.5,0.20920821]
[1746026481874,6.67059801,1766.8,1766.5,0.20920821]
[1746026482029,6.23817579,1766.8,1766.5,0.20920821]
[1746026482225,6.94108337,1766.8,1766.5,0.20920821]
[1746026482431,6.23817579,1766.6,1766.5,0.20920821]
[1746026483329,6.23817579,1766.8,1766.5,0.20920821]
[1746026484129,0.43152187,1766.9,1766.6,1.3617]
[1746026484336,6.23817579,1767.0,1766.7,0.20800377]
[1746026484551,6.23817579,1767.0,1766.6,1.3617]
[1746026484751,6.23817579,1767.0,1766.7,0.20800377]
[1746026484947,6.23817579,1767.0,1766.6,1.3617]
[1746026485297,6.23817579,1767.0,1766.7,0.20800377]
[1746026485634,6.23817579,1767.0,1766.6,1.3617]
[1746026485830,6.23817579,1767.0,1766.7,0.20800377]
[1746026486142,6.23817579,1767.0,1766.8,0.20800377]
[1746026486336,6.99587579,1767.2,1766.7,0.05659215]
[1746026486549,6.99587579,1767.2,1766.8,0.20111054]
[1746026486742,6.99587579,1767.2,1766.6,1.41828946]
[1746026486942,6.99587579,1767.2,1766.7,0.20077606]
[1746026487142,6.99587579,1767.2,1766.6,1.41828946]
[1746026487354,6.99587579,1767.2,1766.7,0.20077606]
[1746026487565,6.99587579,1767.2,1766.6,1.3617]
[1746026487769,6.99587579,1767.2,1766.7,0.20077606]
[1746026487966,7.02447579,1766.8,1766.5,6.17]
[1746026488156,7.02447579,1766.8,1766.6,0.20077606]
[1746026490365,7.02447579,1766.8,1766.7,0.20151194]
[1746026490573,7.02447579,1766.8,1766.4,5.74350012]
[1746026490774,7.02447579,1766.8,1766.5,0.77336513]
[1746026491163,7.45668393,1766.8,1766.5,0.77336513]
[1746026491646,7.45668393,1766.8,1766.6,6.3]
[1746026492383,7.45668393,1766.8,1766.7,0.19901512]
[1746026492573,7.45668393,1766.8,1766.6,6.3]
[1746026492769,7.45668393,1766.8,1766.7,0.19901512]
[1746026492972,7.45668393,1766.8,1766.6,6.3]
[1746026493174,7.45668393,1766.8,1766.7,0.19901512]
[1746026493353,7.45668393,1766.8,1766.6,6.3]
[1746026493555,7.45668393,1766.8,1766.7,0.19651547]
[1746026493881,7.45668393,1766.8,1766.6,6.3]
[1746026494108,7.45668393,1766.8,1766.7,0.19651547]
[1746026494254,8.05668393,1766.8,1766.7,0.19651547]
[1746026494456,0.8317,1766.7,1766.0,6.9661]
[1746026494753,0.8317,1766.4,1766.1,11.205]
[1746026496070,0.8317,1766.4,1765.8,25.7001]
[1746026496270,3.8317,1766.4,1766.0,4.905]
[1746026496584,6.23817579,1766.1,1765.8,18.722]
[1746026496885,6.23817579,1765.9,1765.7,4.905]
[1746026497180,0.8016,1766.0,1765.5,11.26163005]
[1746026497181,3.8016,1766.0,1765.5,11.26163005]
[1746026497381,3.8016,1766.0,1765.5,11.205]
[1746026497748,6.23817579,1766.1,1765.6,0.7916]
[1746026497998,7.03857579,1766.2,1765.6,0.84823005]
[1746026498422,7.03857579,1766.2,1765.7,6.3]
[1746026498800,0.8115,1765.9,1765.5,4.905]
[1746026499101,6.23817579,1765.8,1765.5,4.905]
[1746026499301,6.23817579,1765.6,1765.4,5.20075347]
[1746026499814,10.48214929,1765.8,1765.5,0.16515635]
[1746026500020,1.2439735,1765.8,1765.5,0.16515635]
[1746026500930,3.0,1765.9,1765.5,0.77889733]
[1746026501132,7.06507579,1766.0,1765.5,0.77889733]
[1746026502043,6.23817579,1765.6,1765.5,0.16515635]
[1746026502739,9.23817579,1765.6,1765.5,0.16515635]
[1746026502939,9.28817594,1765.6,1765.5,0.16515635]
[1746026503149,9.99707579,1765.6,1765.5,0.16515635]
[1746026503308,10.99678337,1765.6,1765.5,0.16515635]
[1746026504140,0.826,1765.4,1764.7,0.2958286]
[1746026504339,6.23817579,1765.0,1764.7,0.2958286]
[1746026504550,6.23817579,1765.0,1764.5,0.7803]
[1746026504724,6.23817579,1765.0,1764.6,6.3]
[1746026505227,3.0,1764.9,1764.4,4.906]
[1746026505620,3.0,1764.9,1764.5,6.3]
[1746026505939,3.826,1765.1,1764.5,6.3]
[1746026506142,0.826,1765.1,1764.5,6.35666666]